Department family,Entity,Date,Expense type,Expense area,Supplier,Transaction number,Amount
Department of Health,Leicestershire Partnership NHS Trust,01/02/21,External Consultancy Fees,Covid Vaccination Workforce Bureau,SEYMOUR JOHN PUB SERV LTD,P1546,78300.00
Department of Health,Leicestershire Partnership NHS Trust,01/02/21,External Consultancy Fees,Covid Vaccination Workforce Bureau,SEYMOUR JOHN PUB SERV LTD,P1547,162840.00
Department of Health,Leicestershire Partnership NHS Trust,01/02/21,Senior Manager - Band 8A,HIS Service Delivery,SEYMOUR JOHN PUB SERV LTD,P1556,60000.00
Department of Health,Leicestershire Partnership NHS Trust,01/02/21,Crs_NHS_LT1y -Resus Inventory Supplied.,Balance Sheet Collection,SUPPLY CHAIN CO LTD,1121185242,31331.10
Department of Health,Leicestershire Partnership NHS Trust,02/02/21,Payroll Deductions -Salary Sacrifice Cars Scheme,Balance Sheet Collection,TUSKER,45295,31998.50
Department of Health,Leicestershire Partnership NHS Trust,02/02/21,Unitary Payment,"The Agnes Unit (AKA Assessment and Treatment Centre) (P85, LPT)",ARDEN PARTNERSHIP (LEICESTER),SI0066,119506.98
Department of Health,Leicestershire Partnership NHS Trust,03/02/21,External Data Processing / Storage,Records & information Governance,H COATES LTD/TA C&V DATA,4004072,29596.33
Department of Health,Leicestershire Partnership NHS Trust,04/02/21,NURSE - BAND 2 - AGENCY,Beechwood Ward,HCL NURSING,HNSI0000599,349.46
Department of Health,Leicestershire Partnership NHS Trust,04/02/21,NURSE - BAND 5 - AGENCY,City Planned Care - East,HCL NURSING,HNSI0000599,16229.26
Department of Health,Leicestershire Partnership NHS Trust,04/02/21,NURSE - BAND 5 - AGENCY,City Planned Care - West,HCL NURSING,HNSI0000599,11869.49
Department of Health,Leicestershire Partnership NHS Trust,04/02/21,NURSE - BAND 2 - AGENCY,City Planned Care - West - Therapy,HCL NURSING,HNSI0000599,1631.71
Department of Health,Leicestershire Partnership NHS Trust,04/02/21,Nurse - Band 6 -Agency,City West CMHT MHSOP,HCL NURSING,HNSI0000599,2116.22
Department of Health,Leicestershire Partnership NHS Trust,04/02/21,NURSE - BAND 2 - AGENCY,Clarendon Ward,HCL NURSING,HNSI0000599,6189.75
Department of Health,Leicestershire Partnership NHS Trust,04/02/21,NURSE - BAND 5 - AGENCY,Clarendon Ward,HCL NURSING,HNSI0000599,11993.52
Department of Health,Leicestershire Partnership NHS Trust,04/02/21,NURSE - BAND 2 - AGENCY,Coalville Snibston Ward,HCL NURSING,HNSI0000599,495.28
Department of Health,Leicestershire Partnership NHS Trust,04/02/21,NURSE - BAND 5 - AGENCY,Coalville Snibston Ward,HCL NURSING,HNSI0000599,2240.20
Department of Health,Leicestershire Partnership NHS Trust,04/02/21,NURSE - BAND 5 - AGENCY,Coalville Ward 2,HCL NURSING,HNSI0000599,921.06
Department of Health,Leicestershire Partnership NHS Trust,04/02/21,NURSE - BAND 2 - AGENCY,Coleman Ward,HCL NURSING,HNSI0000599,2514.31
Department of Health,Leicestershire Partnership NHS Trust,04/02/21,NURSE - BAND 5 - AGENCY,Coleman Ward,HCL NURSING,HNSI0000599,5236.73
Department of Health,Leicestershire Partnership NHS Trust,04/02/21,NURSE - BAND 5 - AGENCY,Dalgliesh Ward,HCL NURSING,HNSI0000599,772.10
Department of Health,Leicestershire Partnership NHS Trust,04/02/21,NURSE - BAND 2 - AGENCY,Gwendolen Ward,HCL NURSING,HNSI0000599,3351.95
Department of Health,Leicestershire Partnership NHS Trust,04/02/21,NURSE - BAND 5 - AGENCY,Gwendolen Ward,HCL NURSING,HNSI0000599,2339.27
Department of Health,Leicestershire Partnership NHS Trust,04/02/21,NURSE - BAND 2 - AGENCY,H&B Comm Hosp East Ward,HCL NURSING,HNSI0000599,21855.56
Department of Health,Leicestershire Partnership NHS Trust,04/02/21,NURSE - BAND 5 - AGENCY,H&B Comm Hosp East Ward,HCL NURSING,HNSI0000599,11404.72
Department of Health,Leicestershire Partnership NHS Trust,04/02/21,NURSE - BAND 2 - AGENCY,H&B Comm Hosp North Ward,HCL NURSING,HNSI0000599,211.11
Department of Health,Leicestershire Partnership NHS Trust,04/02/21,NURSE - BAND 5 - AGENCY,H&B Comm Hosp North Ward,HCL NURSING,HNSI0000599,1388.59
Department of Health,Leicestershire Partnership NHS Trust,04/02/21,NURSE - BAND 5 - AGENCY,Kirby Ward,HCL NURSING,HNSI0000599,326.26
Department of Health,Leicestershire Partnership NHS Trust,04/02/21,NURSE - BAND 2 - AGENCY,Lough Charnwood Ward,HCL NURSING,HNSI0000599,4610.10
Department of Health,Leicestershire Partnership NHS Trust,04/02/21,NURSE - BAND 5 - AGENCY,Lough Charnwood Ward,HCL NURSING,HNSI0000599,1630.35
Department of Health,Leicestershire Partnership NHS Trust,04/02/21,NURSE - BAND 2 - AGENCY,Lough Swithland Ward,HCL NURSING,HNSI0000599,418.99
Department of Health,Leicestershire Partnership NHS Trust,04/02/21,NURSE - BAND 5 - AGENCY,Lough Swithland Ward,HCL NURSING,HNSI0000599,532.35
Department of Health,Leicestershire Partnership NHS Trust,04/02/21,Nurse - Band 6 -Agency,MHSOP Unscheduled Care Service,HCL NURSING,HNSI0000599,1968.43
Department of Health,Leicestershire Partnership NHS Trust,04/02/21,NURSE - BAND 2 - AGENCY,St Lukes Stroke Ward,HCL NURSING,HNSI0000599,213.26
Department of Health,Leicestershire Partnership NHS Trust,04/02/21,NURSE - BAND 5 - AGENCY,St Lukes Stroke Ward,HCL NURSING,HNSI0000599,362.33
Department of Health,Leicestershire Partnership NHS Trust,04/02/21,NURSE - BAND 5 - AGENCY,St Lukes Ward 3,HCL NURSING,HNSI0000599,3342.96
Department of Health,Leicestershire Partnership NHS Trust,04/02/21,NURSE - BAND 2 - AGENCY,Wakerley Ward,HCL NURSING,HNSI0000599,1436.37
Department of Health,Leicestershire Partnership NHS Trust,04/02/21,NURSE - BAND 5 - AGENCY,Wakerley Ward,HCL NURSING,HNSI0000599,5713.07
Department of Health,Leicestershire Partnership NHS Trust,04/02/21,NURSE - BAND 5 - AGENCY,Welford Ward,HCL NURSING,HNSI0000599,302.60
Department of Health,Leicestershire Partnership NHS Trust,04/02/21,NURSE - BAND 3 - AGENCY,West Planned Care  - Hinckley Hub,HCL NURSING,HNSI0000599,716.12
Department of Health,Leicestershire Partnership NHS Trust,04/02/21,Nurse - Band 6 -Agency,AMH - Central Access Point,HCL NURSING,HNSI0000598,1897.46
Department of Health,Leicestershire Partnership NHS Trust,04/02/21,NURSE - BAND 2 - AGENCY,Acacia (Willows),HCL NURSING,HNSI0000598,174.73
Department of Health,Leicestershire Partnership NHS Trust,04/02/21,Nurse - Band 6 -Agency,Adult City East CMHT - Merlyn Vaz,HCL NURSING,HNSI0000598,3209.90
Department of Health,Leicestershire Partnership NHS Trust,04/02/21,Nurse - Band 6 -Agency,Adult County West Leicestershire CMHT,HCL NURSING,HNSI0000598,1069.97
Department of Health,Leicestershire Partnership NHS Trust,04/02/21,NURSE - BAND 2 - AGENCY,Agnes Unit Management,HCL NURSING,HNSI0000598,6552.73
Department of Health,Leicestershire Partnership NHS Trust,04/02/21,NURSE - BAND 5 - AGENCY,Agnes Unit Management,HCL NURSING,HNSI0000598,4816.32
Department of Health,Leicestershire Partnership NHS Trust,04/02/21,NURSE - BAND 2 - AGENCY,Aston Ward (Bradgate Unit),HCL NURSING,HNSI0000598,213.26
Department of Health,Leicestershire Partnership NHS Trust,04/02/21,NURSE - BAND 5 - AGENCY,Aston Ward (Bradgate Unit),HCL NURSING,HNSI0000598,606.74
Department of Health,Leicestershire Partnership NHS Trust,04/02/21,NURSE - BAND 2 - AGENCY,Beaumont Ward - Bradgate Unit,HCL NURSING,HNSI0000598,4106.95
Department of Health,Leicestershire Partnership NHS Trust,04/02/21,NURSE - BAND 5 - AGENCY,Beaumont Ward - Bradgate Unit,HCL NURSING,HNSI0000598,1006.41
Department of Health,Leicestershire Partnership NHS Trust,04/02/21,NURSE - BAND 2 - AGENCY,Belvoir Psychiatric Intensive Care Unit,HCL NURSING,HNSI0000598,360.75
Department of Health,Leicestershire Partnership NHS Trust,04/02/21,NURSE - BAND 5 - AGENCY,Belvoir Psychiatric Intensive Care Unit,HCL NURSING,HNSI0000598,370.40
Department of Health,Leicestershire Partnership NHS Trust,04/02/21,Nurse - Band 6 -Agency,Crisis Resolution,HCL NURSING,HNSI0000598,709.86
Department of Health,Leicestershire Partnership NHS Trust,04/02/21,NURSE - BAND 2 - AGENCY,Griffin Ward (HPC),HCL NURSING,HNSI0000598,414.28
Department of Health,Leicestershire Partnership NHS Trust,04/02/21,NURSE - BAND 5 - AGENCY,Griffin Ward (HPC),HCL NURSING,HNSI0000598,1525.95
Department of Health,Leicestershire Partnership NHS Trust,04/02/21,NURSE - BAND 2 - AGENCY,Heather Ward,HCL NURSING,HNSI0000598,2320.34
Department of Health,Leicestershire Partnership NHS Trust,04/02/21,NURSE - BAND 5 - AGENCY,Heather Ward,HCL NURSING,HNSI0000598,266.74
Department of Health,Leicestershire Partnership NHS Trust,04/02/21,NURSE - BAND 2 - AGENCY,Mill Lodge,HCL NURSING,HNSI0000598,588.70
Department of Health,Leicestershire Partnership NHS Trust,04/02/21,NURSE - BAND 2 - AGENCY,Phoenix Ward (HPC),HCL NURSING,HNSI0000598,223.59
Department of Health,Leicestershire Partnership NHS Trust,04/02/21,NURSE - BAND 5 - AGENCY,Stewart House,HCL NURSING,HNSI0000598,634.49
Department of Health,Leicestershire Partnership NHS Trust,04/02/21,NURSE - BAND 2 - AGENCY,Watermead Ward (Bradgate Unit),HCL NURSING,HNSI0000598,174.73
Department of Health,Leicestershire Partnership NHS Trust,04/02/21,Nurse - Band 6 -Agency,CAMHS Waiting List Monies,HCL SOCIAL CARE,HWSI0000297,28822.67
Department of Health,Leicestershire Partnership NHS Trust,04/02/21,HIS LPT Costs,HIS,THE PHOENIX PARTNERSHIP,12065,117733.67
Department of Health,Leicestershire Partnership NHS Trust,05/02/21,Finance / Procurement Services,HR Employment Services,LINCOLNSHIRE PART NHSFT(RP7),2000021092,0.00
Department of Health,Leicestershire Partnership NHS Trust,05/02/21,HR / Payroll Services,HR Employment Services,LINCOLNSHIRE PART NHSFT(RP7),2000021092,29360.83
Department of Health,Leicestershire Partnership NHS Trust,08/02/21,Nurse - Band 6 -Agency,AMH - Central Access Point,HCL NURSING,HNSI0000604,1209.19
Department of Health,Leicestershire Partnership NHS Trust,08/02/21,Nurse - Band 6 -Agency,Adult City East CMHT - Merlyn Vaz,HCL NURSING,HNSI0000604,2139.93
Department of Health,Leicestershire Partnership NHS Trust,08/02/21,Nurse - Band 6 -Agency,Adult County Charnwood CMHT - Loughborough Base,HCL NURSING,HNSI0000604,1069.97
Department of Health,Leicestershire Partnership NHS Trust,08/02/21,NURSE - BAND 2 - AGENCY,Agnes Unit Management,HCL NURSING,HNSI0000604,8009.40
Department of Health,Leicestershire Partnership NHS Trust,08/02/21,NURSE - BAND 5 - AGENCY,Agnes Unit Management,HCL NURSING,HNSI0000604,4171.11
Department of Health,Leicestershire Partnership NHS Trust,08/02/21,NURSE - BAND 2 - AGENCY,Ashby Ward (Bradgate Unit),HCL NURSING,HNSI0000604,174.73
Department of Health,Leicestershire Partnership NHS Trust,08/02/21,NURSE - BAND 5 - AGENCY,Ashby Ward (Bradgate Unit),HCL NURSING,HNSI0000604,370.40
Department of Health,Leicestershire Partnership NHS Trust,08/02/21,NURSE - BAND 2 - AGENCY,Aston Ward (Bradgate Unit),HCL NURSING,HNSI0000604,1213.75
Department of Health,Leicestershire Partnership NHS Trust,08/02/21,NURSE - BAND 5 - AGENCY,Aston Ward (Bradgate Unit),HCL NURSING,HNSI0000604,1392.56
Department of Health,Leicestershire Partnership NHS Trust,08/02/21,NURSE - BAND 2 - AGENCY,Beaumont Ward - Bradgate Unit,HCL NURSING,HNSI0000604,1567.50
Department of Health,Leicestershire Partnership NHS Trust,08/02/21,NURSE - BAND 5 - AGENCY,Beaumont Ward - Bradgate Unit,HCL NURSING,HNSI0000604,1739.32
Department of Health,Leicestershire Partnership NHS Trust,08/02/21,NURSE - BAND 2 - AGENCY,Belvoir Psychiatric Intensive Care Unit,HCL NURSING,HNSI0000604,749.61
Department of Health,Leicestershire Partnership NHS Trust,08/02/21,NURSE - BAND 5 - AGENCY,Belvoir Psychiatric Intensive Care Unit,HCL NURSING,HNSI0000604,669.81
Department of Health,Leicestershire Partnership NHS Trust,08/02/21,Nurse - Band 6 -Agency,Crisis Resolution,HCL NURSING,HNSI0000604,2894.65
Department of Health,Leicestershire Partnership NHS Trust,08/02/21,NURSE - BAND 2 - AGENCY,Griffin Ward (HPC),HCL NURSING,HNSI0000604,102.65
Department of Health,Leicestershire Partnership NHS Trust,08/02/21,NURSE - BAND 5 - AGENCY,Griffin Ward (HPC),HCL NURSING,HNSI0000604,1829.70
Department of Health,Leicestershire Partnership NHS Trust,08/02/21,NURSE - BAND 2 - AGENCY,Heather Ward,HCL NURSING,HNSI0000604,349.46
Department of Health,Leicestershire Partnership NHS Trust,08/02/21,NURSE - BAND 5 - AGENCY,Heather Ward,HCL NURSING,HNSI0000604,329.84
Department of Health,Leicestershire Partnership NHS Trust,08/02/21,NURSE - BAND 5 - AGENCY,Stewart House,HCL NURSING,HNSI0000604,634.49
Department of Health,Leicestershire Partnership NHS Trust,08/02/21,NURSE - BAND 2 - AGENCY,Watermead Ward (Bradgate Unit),HCL NURSING,HNSI0000604,758.66
Department of Health,Leicestershire Partnership NHS Trust,08/02/21,NURSE - BAND 5 - AGENCY,Watermead Ward (Bradgate Unit),HCL NURSING,HNSI0000604,659.67
Department of Health,Leicestershire Partnership NHS Trust,08/02/21,Nurse - Band 6 -Agency,CAMHS Waiting List Monies,HCL SOCIAL CARE,HWSI0000322,25675.14
Department of Health,Leicestershire Partnership NHS Trust,08/02/21,Crs_NHS_LT1y -Resus Inventory Supplied.,Balance Sheet Collection,SUPPLY CHAIN CO LTD,1121189353,28753.41
Department of Health,Leicestershire Partnership NHS Trust,08/02/21,WIP Project Not in BS - Buildings excl Dwellings,Work in Progress,TILBURY DOUGLAS CONSTRUCTION LTD,TMP01387,68474.20
Department of Health,Leicestershire Partnership NHS Trust,08/02/21,WIP Project Not in BS - Buildings excl Dwellings,Work in Progress,TILBURY DOUGLAS CONSTRUCTION LTD,TMP01388,549136.97
Department of Health,Leicestershire Partnership NHS Trust,08/02/21,WIP Project Not in BS - Buildings excl Dwellings,Work in Progress,TILBURY DOUGLAS CONSTRUCTION LTD,TMP01394,25607.59
Department of Health,Leicestershire Partnership NHS Trust,08/02/21,Nurse - Band 6 -Agency,AMH - Central Access Point,HCL NURSING,HNSI0000588,1416.73
Department of Health,Leicestershire Partnership NHS Trust,08/02/21,NURSE - BAND 2 - AGENCY,Acacia (Willows),HCL NURSING,HNSI0000588,174.73
Department of Health,Leicestershire Partnership NHS Trust,08/02/21,NURSE - BAND 5 - AGENCY,Adult City East CMHT - Merlyn Vaz,HCL NURSING,HNSI0000588,172.96
Department of Health,Leicestershire Partnership NHS Trust,08/02/21,Nurse - Band 6 -Agency,Adult City East CMHT - Merlyn Vaz,HCL NURSING,HNSI0000588,2910.30
Department of Health,Leicestershire Partnership NHS Trust,08/02/21,Nurse - Band 6 -Agency,Adult County Charnwood CMHT - Loughborough Base,HCL NURSING,HNSI0000588,641.98
Department of Health,Leicestershire Partnership NHS Trust,08/02/21,Nurse - Band 6 -Agency,Adult County West Leicestershire CMHT,HCL NURSING,HNSI0000588,1069.97
Department of Health,Leicestershire Partnership NHS Trust,08/02/21,NURSE - BAND 2 - AGENCY,Agnes Unit Management,HCL NURSING,HNSI0000588,8186.81
Department of Health,Leicestershire Partnership NHS Trust,08/02/21,NURSE - BAND 5 - AGENCY,Agnes Unit Management,HCL NURSING,HNSI0000588,6781.18
Department of Health,Leicestershire Partnership NHS Trust,08/02/21,NURSE - BAND 2 - AGENCY,Ashby Ward (Bradgate Unit),HCL NURSING,HNSI0000588,174.73
Department of Health,Leicestershire Partnership NHS Trust,08/02/21,NURSE - BAND 2 - AGENCY,Aston Ward (Bradgate Unit),HCL NURSING,HNSI0000588,128.06
Department of Health,Leicestershire Partnership NHS Trust,08/02/21,NURSE - BAND 5 - AGENCY,Aston Ward (Bradgate Unit),HCL NURSING,HNSI0000588,710.37
Department of Health,Leicestershire Partnership NHS Trust,08/02/21,NURSE - BAND 2 - AGENCY,Beaumont Ward - Bradgate Unit,HCL NURSING,HNSI0000588,3214.25
Department of Health,Leicestershire Partnership NHS Trust,08/02/21,NURSE - BAND 5 - AGENCY,Beaumont Ward - Bradgate Unit,HCL NURSING,HNSI0000588,987.07
Department of Health,Leicestershire Partnership NHS Trust,08/02/21,NURSE - BAND 2 - AGENCY,Belvoir Psychiatric Intensive Care Unit,HCL NURSING,HNSI0000588,301.38
Department of Health,Leicestershire Partnership NHS Trust,08/02/21,NURSE - BAND 5 - AGENCY,Belvoir Psychiatric Intensive Care Unit,HCL NURSING,HNSI0000588,2112.43
Department of Health,Leicestershire Partnership NHS Trust,08/02/21,Nurse - Band 6 -Agency,Crisis Resolution,HCL NURSING,HNSI0000588,1503.36
Department of Health,Leicestershire Partnership NHS Trust,08/02/21,NURSE - BAND 2 - AGENCY,Griffin Ward (HPC),HCL NURSING,HNSI0000588,914.83
Department of Health,Leicestershire Partnership NHS Trust,08/02/21,NURSE - BAND 5 - AGENCY,Griffin Ward (HPC),HCL NURSING,HNSI0000588,1992.66
Department of Health,Leicestershire Partnership NHS Trust,08/02/21,NURSE - BAND 2 - AGENCY,Heather Ward,HCL NURSING,HNSI0000588,611.58
Department of Health,Leicestershire Partnership NHS Trust,08/02/21,NURSE - BAND 2 - AGENCY,Phoenix Ward (HPC),HCL NURSING,HNSI0000588,277.89
Department of Health,Leicestershire Partnership NHS Trust,08/02/21,NURSE - BAND 5 - AGENCY,Stewart House,HCL NURSING,HNSI0000588,287.94
Department of Health,Leicestershire Partnership NHS Trust,08/02/21,NURSE - BAND 2 - AGENCY,Watermead Ward (Bradgate Unit),HCL NURSING,HNSI0000588,448.68
Department of Health,Leicestershire Partnership NHS Trust,08/02/21,Computer License  Fees,Information Services,PHOENIX SOFTWARE LTD,OP/I887992,25696.42
Department of Health,Leicestershire Partnership NHS Trust,09/02/21,Computer Hardware,HIS Programme & Change,DELL COMPUTERS,7402683770,42720.00
Department of Health,Leicestershire Partnership NHS Trust,09/02/21,FP10'S,Adult City Drugs,NHS BUS SERVICES AUTHORITY,10000067867,35497.12
Department of Health,Leicestershire Partnership NHS Trust,09/02/21,FP10'S,Adult County Drugs,NHS BUS SERVICES AUTHORITY,10000067867,11610.54
Department of Health,Leicestershire Partnership NHS Trust,09/02/21,FP10'S,Adult County North West Leicestershire CMHT,NHS BUS SERVICES AUTHORITY,10000067867,158.89
Department of Health,Leicestershire Partnership NHS Trust,09/02/21,FP10'S,CAMHS Outpatients,NHS BUS SERVICES AUTHORITY,10000067867,22516.80
Department of Health,Leicestershire Partnership NHS Trust,09/02/21,FP10'S,Children Services Medical,NHS BUS SERVICES AUTHORITY,10000067867,9500.45
Department of Health,Leicestershire Partnership NHS Trust,09/02/21,FP10'S,Dementia Related Drugs and Investigations,NHS BUS SERVICES AUTHORITY,10000067867,4213.17
Department of Health,Leicestershire Partnership NHS Trust,09/02/21,FP10'S,Eating Disorders Outpatient Service,NHS BUS SERVICES AUTHORITY,10000067867,741.71
Department of Health,Leicestershire Partnership NHS Trust,09/02/21,FP10'S,Forensic Services - Community,NHS BUS SERVICES AUTHORITY,10000067867,139.53
Department of Health,Leicestershire Partnership NHS Trust,09/02/21,FP10'S,LOROS Pharmacy,NHS BUS SERVICES AUTHORITY,10000067867,191.48
Department of Health,Leicestershire Partnership NHS Trust,09/02/21,FP10'S,Leicestershire Psych-oncology Service,NHS BUS SERVICES AUTHORITY,10000067867,58.04
Department of Health,Leicestershire Partnership NHS Trust,09/02/21,FP10'S,Liason Psychiatry Service,NHS BUS SERVICES AUTHORITY,10000067867,152.23
Department of Health,Leicestershire Partnership NHS Trust,09/02/21,FP10'S,Lough Swithland Ward,NHS BUS SERVICES AUTHORITY,10000067867,6.05
Department of Health,Leicestershire Partnership NHS Trust,09/02/21,FP10'S,PIER Team - Early Intervention Services,NHS BUS SERVICES AUTHORITY,10000067867,12159.62
Department of Health,Leicestershire Partnership NHS Trust,09/02/21,FP10'S,Snr Med Staff (Inc Med Reps),NHS BUS SERVICES AUTHORITY,10000067867,3374.73
Department of Health,Leicestershire Partnership NHS Trust,10/02/21,Network Costs - WAN Maint,HIS Infrastructure,VIRGIN MEDIA BUSINESS,262421-177,39591.59
Department of Health,Leicestershire Partnership NHS Trust,12/02/21,GP IT Expenditure,Area Team,DELL COMPUTERS,7402684969,31464.72
Department of Health,Leicestershire Partnership NHS Trust,12/02/21,GP IT Expenditure,Area Team,DELL COMPUTERS,7402685098,31464.72
Department of Health,Leicestershire Partnership NHS Trust,12/02/21,Nurse - Band 6 -Agency,AMH - Central Access Point,HCL NURSING,HNSI0000608,3010.20
Department of Health,Leicestershire Partnership NHS Trust,12/02/21,NURSE - BAND 2 - AGENCY,Acacia (Willows),HCL NURSING,HNSI0000608,521.91
Department of Health,Leicestershire Partnership NHS Trust,12/02/21,Nurse - Band 6 -Agency,Adult City East CMHT - Merlyn Vaz,HCL NURSING,HNSI0000608,2139.93
Department of Health,Leicestershire Partnership NHS Trust,12/02/21,Nurse - Band 6 -Agency,Adult County Charnwood CMHT - Loughborough Base,HCL NURSING,HNSI0000608,1489.97
Department of Health,Leicestershire Partnership NHS Trust,12/02/21,Nurse - Band 6 -Agency,Adult County West Leicestershire CMHT,HCL NURSING,HNSI0000608,1069.97
Department of Health,Leicestershire Partnership NHS Trust,12/02/21,NURSE - BAND 2 - AGENCY,Agnes Unit Management,HCL NURSING,HNSI0000608,8091.17
Department of Health,Leicestershire Partnership NHS Trust,12/02/21,NURSE - BAND 5 - AGENCY,Agnes Unit Management,HCL NURSING,HNSI0000608,3849.51
Department of Health,Leicestershire Partnership NHS Trust,12/02/21,NURSE - BAND 2 - AGENCY,Aston Ward (Bradgate Unit),HCL NURSING,HNSI0000608,1343.75
Department of Health,Leicestershire Partnership NHS Trust,12/02/21,NURSE - BAND 5 - AGENCY,Aston Ward (Bradgate Unit),HCL NURSING,HNSI0000608,1251.54
Department of Health,Leicestershire Partnership NHS Trust,12/02/21,NURSE - BAND 2 - AGENCY,Beaumont Ward - Bradgate Unit,HCL NURSING,HNSI0000608,2604.71
Department of Health,Leicestershire Partnership NHS Trust,12/02/21,NURSE - BAND 5 - AGENCY,Beaumont Ward - Bradgate Unit,HCL NURSING,HNSI0000608,1069.48
Department of Health,Leicestershire Partnership NHS Trust,12/02/21,NURSE - BAND 2 - AGENCY,Belvoir Psychiatric Intensive Care Unit,HCL NURSING,HNSI0000608,376.91
Department of Health,Leicestershire Partnership NHS Trust,12/02/21,NURSE - BAND 5 - AGENCY,Belvoir Psychiatric Intensive Care Unit,HCL NURSING,HNSI0000608,426.71
Department of Health,Leicestershire Partnership NHS Trust,12/02/21,Nurse - Band 6 -Agency,Crisis Resolution,HCL NURSING,HNSI0000608,4226.74
Department of Health,Leicestershire Partnership NHS Trust,12/02/21,NURSE - BAND 2 - AGENCY,Griffin Ward (HPC),HCL NURSING,HNSI0000608,1539.13
Department of Health,Leicestershire Partnership NHS Trust,12/02/21,NURSE - BAND 5 - AGENCY,Griffin Ward (HPC),HCL NURSING,HNSI0000608,1539.03
Department of Health,Leicestershire Partnership NHS Trust,12/02/21,NURSE - BAND 2 - AGENCY,Heather Ward,HCL NURSING,HNSI0000608,595.25
Department of Health,Leicestershire Partnership NHS Trust,12/02/21,NURSE - BAND 2 - AGENCY,Maple Ward,HCL NURSING,HNSI0000608,262.38
Department of Health,Leicestershire Partnership NHS Trust,12/02/21,NURSE - BAND 2 - AGENCY,Mill Lodge,HCL NURSING,HNSI0000608,192.21
Department of Health,Leicestershire Partnership NHS Trust,12/02/21,NURSE - BAND 5 - AGENCY,Mill Lodge,HCL NURSING,HNSI0000608,634.49
Department of Health,Leicestershire Partnership NHS Trust,12/02/21,NURSE - BAND 2 - AGENCY,Phoenix Ward (HPC),HCL NURSING,HNSI0000608,358.91
Department of Health,Leicestershire Partnership NHS Trust,12/02/21,NURSE - BAND 5 - AGENCY,Phoenix Ward (HPC),HCL NURSING,HNSI0000608,611.71
Department of Health,Leicestershire Partnership NHS Trust,12/02/21,NURSE - BAND 2 - AGENCY,Watermead Ward (Bradgate Unit),HCL NURSING,HNSI0000608,2732.88
Department of Health,Leicestershire Partnership NHS Trust,12/02/21,NURSE - BAND 5 - AGENCY,Watermead Ward (Bradgate Unit),HCL NURSING,HNSI0000608,659.67
Department of Health,Leicestershire Partnership NHS Trust,12/02/21,Nurse - Band 6 -Agency,CAMHS Waiting List Monies,HCL SOCIAL CARE,HWSI0000332,29453.45
Department of Health,Leicestershire Partnership NHS Trust,12/02/21,Drugs,Adult City Drugs,JANSSEN-CILAG LTD,930689714,12897.35
Department of Health,Leicestershire Partnership NHS Trust,12/02/21,Drugs,Adult County Drugs,JANSSEN-CILAG LTD,930689714,19346.03
Department of Health,Leicestershire Partnership NHS Trust,16/02/21,NURSE - BAND 2 - AGENCY,Beechwood Ward,HCL NURSING,HNSI0000605,223.59
Department of Health,Leicestershire Partnership NHS Trust,16/02/21,NURSE - BAND 5 - AGENCY,Beechwood Ward,HCL NURSING,HNSI0000605,386.05
Department of Health,Leicestershire Partnership NHS Trust,16/02/21,NURSE - BAND 5 - AGENCY,City Planned Care - East,HCL NURSING,HNSI0000605,15568.32
Department of Health,Leicestershire Partnership NHS Trust,16/02/21,NURSE - BAND 5 - AGENCY,City Planned Care - West,HCL NURSING,HNSI0000605,13989.99
Department of Health,Leicestershire Partnership NHS Trust,16/02/21,NURSE - BAND 2 - AGENCY,City Planned Care - West - Therapy,HCL NURSING,HNSI0000605,2514.72
Department of Health,Leicestershire Partnership NHS Trust,16/02/21,Nurse - Band 6 -Agency,City West CMHT MHSOP,HCL NURSING,HNSI0000605,2116.22
Department of Health,Leicestershire Partnership NHS Trust,16/02/21,NURSE - BAND 2 - AGENCY,Clarendon Ward,HCL NURSING,HNSI0000605,9334.29
Department of Health,Leicestershire Partnership NHS Trust,16/02/21,NURSE - BAND 5 - AGENCY,Clarendon Ward,HCL NURSING,HNSI0000605,8193.95
Department of Health,Leicestershire Partnership NHS Trust,16/02/21,NURSE - BAND 2 - AGENCY,Coalville Snibston Ward,HCL NURSING,HNSI0000605,468.20
Department of Health,Leicestershire Partnership NHS Trust,16/02/21,NURSE - BAND 5 - AGENCY,Coalville Snibston Ward,HCL NURSING,HNSI0000605,726.03
Department of Health,Leicestershire Partnership NHS Trust,16/02/21,NURSE - BAND 2 - AGENCY,Coleman Ward,HCL NURSING,HNSI0000605,2322.34
Department of Health,Leicestershire Partnership NHS Trust,16/02/21,NURSE - BAND 5 - AGENCY,Coleman Ward,HCL NURSING,HNSI0000605,5011.15
Department of Health,Leicestershire Partnership NHS Trust,16/02/21,NURSE - BAND 5 - AGENCY,Dalgliesh Ward,HCL NURSING,HNSI0000605,386.05
Department of Health,Leicestershire Partnership NHS Trust,16/02/21,NURSE - BAND 2 - AGENCY,Gwendolen Ward,HCL NURSING,HNSI0000605,1579.81
Department of Health,Leicestershire Partnership NHS Trust,16/02/21,NURSE - BAND 5 - AGENCY,Gwendolen Ward,HCL NURSING,HNSI0000605,3718.23
Department of Health,Leicestershire Partnership NHS Trust,16/02/21,NURSE - BAND 2 - AGENCY,H&B Comm Hosp East Ward,HCL NURSING,HNSI0000605,18723.88
Department of Health,Leicestershire Partnership NHS Trust,16/02/21,NURSE - BAND 5 - AGENCY,H&B Comm Hosp East Ward,HCL NURSING,HNSI0000605,7501.04
Department of Health,Leicestershire Partnership NHS Trust,16/02/21,NURSE - BAND 2 - AGENCY,H&B Comm Hosp North Ward,HCL NURSING,HNSI0000605,850.08
Department of Health,Leicestershire Partnership NHS Trust,16/02/21,NURSE - BAND 5 - AGENCY,H&B Comm Hosp North Ward,HCL NURSING,HNSI0000605,5403.07
Department of Health,Leicestershire Partnership NHS Trust,16/02/21,NURSE - BAND 2 - AGENCY,Kirby Ward,HCL NURSING,HNSI0000605,310.37
Department of Health,Leicestershire Partnership NHS Trust,16/02/21,NURSE - BAND 2 - AGENCY,Lough Charnwood Ward,HCL NURSING,HNSI0000605,4933.25
Department of Health,Leicestershire Partnership NHS Trust,16/02/21,NURSE - BAND 5 - AGENCY,Lough Charnwood Ward,HCL NURSING,HNSI0000605,2446.24
Department of Health,Leicestershire Partnership NHS Trust,16/02/21,NURSE - BAND 5 - AGENCY,Lough Swithland Ward,HCL NURSING,HNSI0000605,1115.50
Department of Health,Leicestershire Partnership NHS Trust,16/02/21,Nurse - Band 6 -Agency,MHSOP Unscheduled Care Service,HCL NURSING,HNSI0000605,88.49
Department of Health,Leicestershire Partnership NHS Trust,16/02/21,NURSE - BAND 5 - AGENCY,Rutland Ward Nursing,HCL NURSING,HNSI0000605,419.10
Department of Health,Leicestershire Partnership NHS Trust,16/02/21,Nurse - Band 6 -Agency,South Leicestershire CMHT MHSOP,HCL NURSING,HNSI0000605,1023.37
Department of Health,Leicestershire Partnership NHS Trust,16/02/21,NURSE - BAND 5 - AGENCY,St Lukes Ward 3,HCL NURSING,HNSI0000605,1545.39
Department of Health,Leicestershire Partnership NHS Trust,16/02/21,NURSE - BAND 2 - AGENCY,Wakerley Ward,HCL NURSING,HNSI0000605,3017.81
Department of Health,Leicestershire Partnership NHS Trust,16/02/21,NURSE - BAND 5 - AGENCY,Wakerley Ward,HCL NURSING,HNSI0000605,5345.50
Department of Health,Leicestershire Partnership NHS Trust,16/02/21,NURSE - BAND 3 - AGENCY,West Planned Care  - Hinckley Hub,HCL NURSING,HNSI0000605,305.35
Department of Health,Leicestershire Partnership NHS Trust,17/02/21,Med GP Trainees,Medical Trainees,ST.HELENS & KNOWSLEY NHS TRUST,16802944,75000.00
Department of Health,Leicestershire Partnership NHS Trust,18/02/21,Internal Printing (machines and ink),Estates & Facilities Central,LEXMARK INTERNATIONAL LTD,900650300302,20102.02
Department of Health,Leicestershire Partnership NHS Trust,18/02/21,Photocopying,Finance Department,LEXMARK INTERNATIONAL LTD,900650300302,13911.26
Department of Health,Leicestershire Partnership NHS Trust,18/02/21,Minor Works,Adult County Charnwood CMHT - Loughborough Base,UHL NHS TRUST (RWE),L0247197,1248.00
Department of Health,Leicestershire Partnership NHS Trust,18/02/21,Minor Works,Ashby Ward (Bradgate Unit),UHL NHS TRUST (RWE),L0247197,36.00
Department of Health,Leicestershire Partnership NHS Trust,18/02/21,Minor Works,"Beaumont Leys Health Centre (P94, LPT)",UHL NHS TRUST (RWE),L0247197,2804.00
Department of Health,Leicestershire Partnership NHS Trust,18/02/21,Minor Works,"Belvoir Intensive Care Unit (P7, LPT)",UHL NHS TRUST (RWE),L0247197,3357.65
Department of Health,Leicestershire Partnership NHS Trust,18/02/21,Minor Works,Bradgate Unit Site Services,UHL NHS TRUST (RWE),L0247197,8994.00
Department of Health,Leicestershire Partnership NHS Trust,18/02/21,Minor Works,CAMHS ED Team,UHL NHS TRUST (RWE),L0247197,71.00
Department of Health,Leicestershire Partnership NHS Trust,18/02/21,Minor Works,CAMHS Learning Disabilities and Outreach Team,UHL NHS TRUST (RWE),L0247197,3900.00
Department of Health,Leicestershire Partnership NHS Trust,18/02/21,Minor Works,COVID 19,UHL NHS TRUST (RWE),L0247197,1248.00
Department of Health,Leicestershire Partnership NHS Trust,18/02/21,Minor Works,"Coalville Community Hospital (P138, LPT)",UHL NHS TRUST (RWE),L0247197,1125.00
Department of Health,Leicestershire Partnership NHS Trust,18/02/21,Minor Works,Forensic Services - Community,UHL NHS TRUST (RWE),L0247197,2980.00
Department of Health,Leicestershire Partnership NHS Trust,18/02/21,Minor Works,Griffin Ward (HPC),UHL NHS TRUST (RWE),L0247197,374.00
Department of Health,Leicestershire Partnership NHS Trust,18/02/21,Minor Works,Heather Ward,UHL NHS TRUST (RWE),L0247197,102.00
Department of Health,Leicestershire Partnership NHS Trust,18/02/21,Minor Works,Involvement Centre,UHL NHS TRUST (RWE),L0247197,312.00
Department of Health,Leicestershire Partnership NHS Trust,18/02/21,Minor Works,Kirby Ward,UHL NHS TRUST (RWE),L0247197,39.00
Department of Health,Leicestershire Partnership NHS Trust,18/02/21,Minor Works,Lough Swithland Ward,UHL NHS TRUST (RWE),L0247197,1044.00
Department of Health,Leicestershire Partnership NHS Trust,18/02/21,Minor Works,"Loughborough Hospital (P136, LPT)",UHL NHS TRUST (RWE),L0247197,94.00
Department of Health,Leicestershire Partnership NHS Trust,18/02/21,Minor Works,MHSOP Site Services,UHL NHS TRUST (RWE),L0247197,102.00
Department of Health,Leicestershire Partnership NHS Trust,18/02/21,Minor Works,Mill Lodge,UHL NHS TRUST (RWE),L0247197,2246.00
Department of Health,Leicestershire Partnership NHS Trust,18/02/21,Minor Works,Stewart House,UHL NHS TRUST (RWE),L0247197,869.40
Department of Health,Leicestershire Partnership NHS Trust,18/02/21,Gas,"Beaumont Leys Health Centre (P94, LPT)",TOTAL GAS & POWER LTD,231301185/21,697.56
Department of Health,Leicestershire Partnership NHS Trust,18/02/21,Gas,"Bradgate Unit (including Glenvale day Unit) (P7, LPT)",TOTAL GAS & POWER LTD,231301185/21,16653.20
Department of Health,Leicestershire Partnership NHS Trust,18/02/21,Gas,Bridge Park Plaza - First Floor (LPT),TOTAL GAS & POWER LTD,231301185/21,1707.13
Department of Health,Leicestershire Partnership NHS Trust,18/02/21,Gas,"Bridge Park Road - Units 2 and 3 (P148, LPT)",TOTAL GAS & POWER LTD,231301185/21,251.35
Department of Health,Leicestershire Partnership NHS Trust,18/02/21,Gas,"Coalville Community Hospital (P138, LPT)",TOTAL GAS & POWER LTD,231301185/21,8248.01
Department of Health,Leicestershire Partnership NHS Trust,18/02/21,Gas,"Coalville Health Centre (P121, LPT)",TOTAL GAS & POWER LTD,231301185/21,685.55
Department of Health,Leicestershire Partnership NHS Trust,18/02/21,Gas,"Evington Centre (P6, LPT)",TOTAL GAS & POWER LTD,231301185/21,1073.38
Department of Health,Leicestershire Partnership NHS Trust,18/02/21,Gas,"Farm Lodge (P34, LPT)",TOTAL GAS & POWER LTD,231301185/21,250.27
Department of Health,Leicestershire Partnership NHS Trust,18/02/21,Gas,"Feilding Palmer Hospital (Lutterworth) (P131, LPT)",TOTAL GAS & POWER LTD,231301185/21,1571.44
Department of Health,Leicestershire Partnership NHS Trust,18/02/21,Gas,"Frith Cottages 3 & 4 (P36, LPT)",TOTAL GAS & POWER LTD,231301185/21,222.46
Department of Health,Leicestershire Partnership NHS Trust,18/02/21,Gas,HIS,TOTAL GAS & POWER LTD,231301185/21,268.36
Department of Health,Leicestershire Partnership NHS Trust,18/02/21,Gas,"Hawthorne Centre - Coalville (P14, LPT)",TOTAL GAS & POWER LTD,231301185/21,494.62
Department of Health,Leicestershire Partnership NHS Trust,18/02/21,Gas,"Hinckley and Bosworth Community Hospital (Sunnyside) (P133, LPT)",TOTAL GAS & POWER LTD,231301185/21,5955.40
Department of Health,Leicestershire Partnership NHS Trust,18/02/21,Gas,"Hynca Lodge (P33, LPT)",TOTAL GAS & POWER LTD,231301185/21,452.81
Department of Health,Leicestershire Partnership NHS Trust,18/02/21,Gas,"LGH - Gwendolen House (P4, LPT)",TOTAL GAS & POWER LTD,231301185/21,1789.86
Department of Health,Leicestershire Partnership NHS Trust,18/02/21,Gas,"Loughborough Hospital (P136, LPT)",TOTAL GAS & POWER LTD,231301185/21,16297.43
Department of Health,Leicestershire Partnership NHS Trust,18/02/21,Gas,Mawson House (LPT),TOTAL GAS & POWER LTD,231301185/21,54.41
Department of Health,Leicestershire Partnership NHS Trust,18/02/21,Gas,"Mett Centre (P49, LPT)",TOTAL GAS & POWER LTD,231301185/21,288.31
Department of Health,Leicestershire Partnership NHS Trust,18/02/21,Gas,"Narborough Health Centre (P117, LPT)",TOTAL GAS & POWER LTD,231301185/21,554.50
Department of Health,Leicestershire Partnership NHS Trust,18/02/21,Gas,"Neville Centre - LGH (was DSC) (P147, LPT)",TOTAL GAS & POWER LTD,231301185/21,919.85
Department of Health,Leicestershire Partnership NHS Trust,18/02/21,Gas,"OSL House (P54, LPT)",TOTAL GAS & POWER LTD,231301185/21,1118.03
Department of Health,Leicestershire Partnership NHS Trust,18/02/21,Gas,"Orchard Resource Centre (P15, LPT)",TOTAL GAS & POWER LTD,231301185/21,715.87
Department of Health,Leicestershire Partnership NHS Trust,18/02/21,Gas,"Rubicon Close 3 (P56, LPT)",TOTAL GAS & POWER LTD,231301185/21,59.52
Department of Health,Leicestershire Partnership NHS Trust,18/02/21,Gas,"Rutland Memorial Hospital (P134, LPT)",TOTAL GAS & POWER LTD,231301185/21,6057.46
Department of Health,Leicestershire Partnership NHS Trust,18/02/21,Gas,"Shepshed Health Centre (P123, LPT)",TOTAL GAS & POWER LTD,231301185/21,655.68
Department of Health,Leicestershire Partnership NHS Trust,18/02/21,Gas,"Springfield Road Health Centre (P92, LPT)",TOTAL GAS & POWER LTD,231301185/21,633.30
Department of Health,Leicestershire Partnership NHS Trust,18/02/21,Gas,"Stewart House (P61, LPT)",TOTAL GAS & POWER LTD,231301185/21,2510.65
Department of Health,Leicestershire Partnership NHS Trust,18/02/21,Gas,"Swithland House - London Road 352 (P44, LPT)",TOTAL GAS & POWER LTD,231301185/21,999.95
Department of Health,Leicestershire Partnership NHS Trust,18/02/21,Gas,"The Agnes Unit (AKA Assessment and Treatment Centre) (P85, LPT)",TOTAL GAS & POWER LTD,231301185/21,3298.05
Department of Health,Leicestershire Partnership NHS Trust,18/02/21,Gas,The Beacon,TOTAL GAS & POWER LTD,231301185/21,1573.48
Department of Health,Leicestershire Partnership NHS Trust,18/02/21,Gas,"The Cedars (P19, LPT)",TOTAL GAS & POWER LTD,231301185/21,367.63
Department of Health,Leicestershire Partnership NHS Trust,18/02/21,Gas,"The Grange 1 (P4, LPT)",TOTAL GAS & POWER LTD,231301185/21,209.80
Department of Health,Leicestershire Partnership NHS Trust,18/02/21,Gas,"The Grange 2 (P41, LPT)",TOTAL GAS & POWER LTD,231301185/21,241.28
Department of Health,Leicestershire Partnership NHS Trust,18/02/21,Gas,"The Willows - Cordelia Close (P22, LPT)",TOTAL GAS & POWER LTD,231301185/21,2138.94
Department of Health,Leicestershire Partnership NHS Trust,18/02/21,Gas,"Westcotes Group -Westcotes House (P78, LPT)",TOTAL GAS & POWER LTD,231301185/21,1097.17
Department of Health,Leicestershire Partnership NHS Trust,18/02/21,Gas,"Winstanley Drive Health Centre (P8, LPT)",TOTAL GAS & POWER LTD,231301185/21,516.54
Department of Health,Leicestershire Partnership NHS Trust,18/02/21,Landline Telephone Rental / Calls,"Beaumont Leys Health Centre (P94, LPT)",VIRGIN MEDIA BUSINESS,853083001/004/0221,369.79
Department of Health,Leicestershire Partnership NHS Trust,18/02/21,Landline Telephone Rental / Calls,Belgrave Health Centre (CHP),VIRGIN MEDIA BUSINESS,853083001/004/0221,322.36
Department of Health,Leicestershire Partnership NHS Trust,18/02/21,Landline Telephone Rental / Calls,"Bennion Centre (including Forest Grange Day Unit) (P8, LPT)",VIRGIN MEDIA BUSINESS,853083001/004/0221,7.74
Department of Health,Leicestershire Partnership NHS Trust,18/02/21,Landline Telephone Rental / Calls,"Bradgate Unit (including Glenvale day Unit) (P7, LPT)",VIRGIN MEDIA BUSINESS,853083001/004/0221,10255.66
Department of Health,Leicestershire Partnership NHS Trust,18/02/21,Landline Telephone Rental / Calls,Braunstone Health and Social Care Centre (Part) (PROPCO),VIRGIN MEDIA BUSINESS,853083001/004/0221,1037.50
Department of Health,Leicestershire Partnership NHS Trust,18/02/21,Landline Telephone Rental / Calls,Bridge Park Plaza - First Floor (LPT),VIRGIN MEDIA BUSINESS,853083001/004/0221,5763.13
Department of Health,Leicestershire Partnership NHS Trust,18/02/21,Landline Telephone Rental / Calls,"Coalville Community Hospital (P138, LPT)",VIRGIN MEDIA BUSINESS,853083001/004/0221,1501.70
Department of Health,Leicestershire Partnership NHS Trust,18/02/21,Landline Telephone Rental / Calls,"Coalville Health Centre (P121, LPT)",VIRGIN MEDIA BUSINESS,853083001/004/0221,169.34
Department of Health,Leicestershire Partnership NHS Trust,18/02/21,Landline Telephone Rental / Calls,County Hall,VIRGIN MEDIA BUSINESS,853083001/004/0221,1218.35
Department of Health,Leicestershire Partnership NHS Trust,18/02/21,Landline Telephone Rental / Calls,Estates & Facilities Central,VIRGIN MEDIA BUSINESS,853083001/004/0221,6144.42
Department of Health,Leicestershire Partnership NHS Trust,18/02/21,Landline Telephone Rental / Calls,"Evington Centre (P6, LPT)",VIRGIN MEDIA BUSINESS,853083001/004/0221,2098.13
Department of Health,Leicestershire Partnership NHS Trust,18/02/21,Landline Telephone Rental / Calls,HIS,VIRGIN MEDIA BUSINESS,853083001/004/0221,3388.70
Department of Health,Leicestershire Partnership NHS Trust,18/02/21,Landline Telephone Rental / Calls,"Hawthorne Centre - Coalville (P14, LPT)",VIRGIN MEDIA BUSINESS,853083001/004/0221,576.92
Department of Health,Leicestershire Partnership NHS Trust,18/02/21,Landline Telephone Rental / Calls,Hinckley & District Hospital (PROPCO),VIRGIN MEDIA BUSINESS,853083001/004/0221,1050.28
Department of Health,Leicestershire Partnership NHS Trust,18/02/21,Landline Telephone Rental / Calls,"Hinckley and Bosworth Community Hospital (Sunnyside) (P133, LPT)",VIRGIN MEDIA BUSINESS,853083001/004/0221,1172.18
Department of Health,Leicestershire Partnership NHS Trust,18/02/21,Landline Telephone Rental / Calls,Hood Park Leisure Centre Clinic,VIRGIN MEDIA BUSINESS,853083001/004/0221,23.22
Department of Health,Leicestershire Partnership NHS Trust,18/02/21,Landline Telephone Rental / Calls,"Hynca Lodge (P33, LPT)",VIRGIN MEDIA BUSINESS,853083001/004/0221,368.82
Department of Health,Leicestershire Partnership NHS Trust,18/02/21,Landline Telephone Rental / Calls,"Legion House, Ashby",VIRGIN MEDIA BUSINESS,853083001/004/0221,56.33
Department of Health,Leicestershire Partnership NHS Trust,18/02/21,Landline Telephone Rental / Calls,Loughborough Health Centre (PROPCO),VIRGIN MEDIA BUSINESS,853083001/004/0221,9.79
Department of Health,Leicestershire Partnership NHS Trust,18/02/21,Landline Telephone Rental / Calls,"Loughborough Hospital (P136, LPT)",VIRGIN MEDIA BUSINESS,853083001/004/0221,4913.71
Department of Health,Leicestershire Partnership NHS Trust,18/02/21,Landline Telephone Rental / Calls,Mawson House (LPT),VIRGIN MEDIA BUSINESS,853083001/004/0221,587.40
Department of Health,Leicestershire Partnership NHS Trust,18/02/21,Landline Telephone Rental / Calls,Melbourne Centre (Pt Grnd flr) (PROPCO),VIRGIN MEDIA BUSINESS,853083001/004/0221,6.45
Department of Health,Leicestershire Partnership NHS Trust,18/02/21,Landline Telephone Rental / Calls,Melton Mowbray Hospital (previously St. Mary's) (PROPCO),VIRGIN MEDIA BUSINESS,853083001/004/0221,1724.09
Department of Health,Leicestershire Partnership NHS Trust,18/02/21,Landline Telephone Rental / Calls,Merlyn Vaz Centre (CHP),VIRGIN MEDIA BUSINESS,853083001/004/0221,1780.85
Department of Health,Leicestershire Partnership NHS Trust,18/02/21,Landline Telephone Rental / Calls,"Mett Centre (P49, LPT)",VIRGIN MEDIA BUSINESS,853083001/004/0221,79.70
Department of Health,Leicestershire Partnership NHS Trust,18/02/21,Landline Telephone Rental / Calls,NSPCC Training Cente,VIRGIN MEDIA BUSINESS,853083001/004/0221,159.96
Department of Health,Leicestershire Partnership NHS Trust,18/02/21,Landline Telephone Rental / Calls,New Parks Health Centre (PROPCO),VIRGIN MEDIA BUSINESS,853083001/004/0221,1728.01
Department of Health,Leicestershire Partnership NHS Trust,18/02/21,Landline Telephone Rental / Calls,"OSL House (P54, LPT)",VIRGIN MEDIA BUSINESS,853083001/004/0221,1079.74
Department of Health,Leicestershire Partnership NHS Trust,18/02/21,Landline Telephone Rental / Calls,"Orchard Resource Centre (P15, LPT)",VIRGIN MEDIA BUSINESS,853083001/004/0221,983.42
Department of Health,Leicestershire Partnership NHS Trust,18/02/21,Landline Telephone Rental / Calls,Pasley Road Health Centre (PROPCO),VIRGIN MEDIA BUSINESS,853083001/004/0221,125.95
Department of Health,Leicestershire Partnership NHS Trust,18/02/21,Landline Telephone Rental / Calls,"Prince Philip House (P96, LPT)",VIRGIN MEDIA BUSINESS,853083001/004/0221,1708.07
Department of Health,Leicestershire Partnership NHS Trust,18/02/21,Landline Telephone Rental / Calls,Rushey Mead Health Centre (PROPCO),VIRGIN MEDIA BUSINESS,853083001/004/0221,81.29
Department of Health,Leicestershire Partnership NHS Trust,18/02/21,Landline Telephone Rental / Calls,"Shepshed Health Centre (P123, LPT)",VIRGIN MEDIA BUSINESS,853083001/004/0221,11.23
Department of Health,Leicestershire Partnership NHS Trust,18/02/21,Landline Telephone Rental / Calls,"Springfield Road Health Centre (P92, LPT)",VIRGIN MEDIA BUSINESS,853083001/004/0221,419.80
Department of Health,Leicestershire Partnership NHS Trust,18/02/21,Landline Telephone Rental / Calls,"St Peters Health Center (Part 1st and 2nd floors) (P66, LPT)",VIRGIN MEDIA BUSINESS,853083001/004/0221,2199.42
Department of Health,Leicestershire Partnership NHS Trust,18/02/21,Landline Telephone Rental / Calls,"Stewart House (P61, LPT)",VIRGIN MEDIA BUSINESS,853083001/004/0221,7.74
Department of Health,Leicestershire Partnership NHS Trust,18/02/21,Landline Telephone Rental / Calls,"The Cedars (P19, LPT)",VIRGIN MEDIA BUSINESS,853083001/004/0221,891.47
Department of Health,Leicestershire Partnership NHS Trust,18/02/21,Landline Telephone Rental / Calls,"The Willows - Cordelia Close (P22, LPT)",VIRGIN MEDIA BUSINESS,853083001/004/0221,476.22
Department of Health,Leicestershire Partnership NHS Trust,18/02/21,Landline Telephone Rental / Calls,Uppingham Road Health Centre (PROPCO),VIRGIN MEDIA BUSINESS,853083001/004/0221,244.98
Department of Health,Leicestershire Partnership NHS Trust,18/02/21,Landline Telephone Rental / Calls,"Valentine Centre (P3, LPT)",VIRGIN MEDIA BUSINESS,853083001/004/0221,2393.86
Department of Health,Leicestershire Partnership NHS Trust,18/02/21,Landline Telephone Rental / Calls,Warren Park Way 25 (PROPCO),VIRGIN MEDIA BUSINESS,853083001/004/0221,746.82
Department of Health,Leicestershire Partnership NHS Trust,18/02/21,Landline Telephone Rental / Calls,"Westcotes Group -Westcotes House (P78, LPT)",VIRGIN MEDIA BUSINESS,853083001/004/0221,1784.99
Department of Health,Leicestershire Partnership NHS Trust,18/02/21,Landline Telephone Rental / Calls,Westcotes Health Centre (CHP),VIRGIN MEDIA BUSINESS,853083001/004/0221,804.96
Department of Health,Leicestershire Partnership NHS Trust,18/02/21,Landline Telephone Rental / Calls,"Winstanley Drive Health Centre (P8, LPT)",VIRGIN MEDIA BUSINESS,853083001/004/0221,411.70
Department of Health,Leicestershire Partnership NHS Trust,18/02/21,FP10'S,Adult City Drugs,NHS BUS SERVICES AUTHORITY,1000068205,35419.29
Department of Health,Leicestershire Partnership NHS Trust,18/02/21,FP10'S,Adult County Drugs,NHS BUS SERVICES AUTHORITY,1000068205,12093.48
Department of Health,Leicestershire Partnership NHS Trust,18/02/21,FP10'S,Adult County North West Leicestershire CMHT,NHS BUS SERVICES AUTHORITY,1000068205,495.43
Department of Health,Leicestershire Partnership NHS Trust,18/02/21,FP10'S,CAMHS Outpatients,NHS BUS SERVICES AUTHORITY,1000068205,17491.11
Department of Health,Leicestershire Partnership NHS Trust,18/02/21,FP10'S,Children Services Medical,NHS BUS SERVICES AUTHORITY,1000068205,14336.73
Department of Health,Leicestershire Partnership NHS Trust,18/02/21,FP10'S,Dementia Related Drugs and Investigations,NHS BUS SERVICES AUTHORITY,1000068205,4598.57
Department of Health,Leicestershire Partnership NHS Trust,18/02/21,FP10'S,Eating Disorders Outpatient Service,NHS BUS SERVICES AUTHORITY,1000068205,664.79
Department of Health,Leicestershire Partnership NHS Trust,18/02/21,FP10'S,Forensic Services - Community,NHS BUS SERVICES AUTHORITY,1000068205,109.74
Department of Health,Leicestershire Partnership NHS Trust,18/02/21,FP10'S,LOROS Pharmacy,NHS BUS SERVICES AUTHORITY,1000068205,475.29
Department of Health,Leicestershire Partnership NHS Trust,18/02/21,FP10'S,Leicestershire Psych-oncology Service,NHS BUS SERVICES AUTHORITY,1000068205,58.13
Department of Health,Leicestershire Partnership NHS Trust,18/02/21,FP10'S,Liason Psychiatry Service,NHS BUS SERVICES AUTHORITY,1000068205,138.15
Department of Health,Leicestershire Partnership NHS Trust,18/02/21,FP10'S,PIER Team - Early Intervention Services,NHS BUS SERVICES AUTHORITY,1000068205,21316.84
Department of Health,Leicestershire Partnership NHS Trust,18/02/21,FP10'S,Snr Med Staff (Inc Med Reps),NHS BUS SERVICES AUTHORITY,1000068205,6590.11
Department of Health,Leicestershire Partnership NHS Trust,18/02/21,Mobile Telephone Rental / Calls,Specific Unit Budget Reserves,VODAFONE CORPORATE LTD,000097205070,132450.04
Department of Health,Leicestershire Partnership NHS Trust,18/02/21,GP IT Expenditure,Area Team,DELL COMPUTERS,7402686926,27900.00
Department of Health,Leicestershire Partnership NHS Trust,18/02/21,GP IT Expenditure,Area Team,DELL COMPUTERS,7402686923,27900.00
Department of Health,Leicestershire Partnership NHS Trust,18/02/21,GP IT Expenditure,Area Team,DELL COMPUTERS,7402686922,27900.00
Department of Health,Leicestershire Partnership NHS Trust,18/02/21,GP IT Expenditure,Area Team,DELL COMPUTERS,7402686868,27900.00
Department of Health,Leicestershire Partnership NHS Trust,19/02/21,HIS LPT Costs,HIS,WELLSKY INTERNATIONAL LTD,INV000839,148976.10
Department of Health,Leicestershire Partnership NHS Trust,22/02/21,Nurse - Band 6 -Agency,CAMHS Waiting List Monies,HCL SOCIAL CARE,HWSI0000348,27024.50
Department of Health,Leicestershire Partnership NHS Trust,22/02/21,Nurse - Band 6 -Agency,AMH - Central Access Point,HCL NURSING,HNSI0000615,1624.17
Department of Health,Leicestershire Partnership NHS Trust,22/02/21,NURSE - BAND 2 - AGENCY,Acacia (Willows),HCL NURSING,HNSI0000615,236.78
Department of Health,Leicestershire Partnership NHS Trust,22/02/21,Nurse - Band 6 -Agency,Adult City East CMHT - Merlyn Vaz,HCL NURSING,HNSI0000615,4051.36
Department of Health,Leicestershire Partnership NHS Trust,22/02/21,Nurse - Band 6 -Agency,Adult County Charnwood CMHT - Loughborough Base,HCL NURSING,HNSI0000615,2139.93
Department of Health,Leicestershire Partnership NHS Trust,22/02/21,Nurse - Band 6 -Agency,Adult County West Leicestershire CMHT,HCL NURSING,HNSI0000615,2139.93
Department of Health,Leicestershire Partnership NHS Trust,22/02/21,NURSE - BAND 2 - AGENCY,Agnes Unit Management,HCL NURSING,HNSI0000615,7860.82
Department of Health,Leicestershire Partnership NHS Trust,22/02/21,NURSE - BAND 5 - AGENCY,Agnes Unit Management,HCL NURSING,HNSI0000615,5914.96
Department of Health,Leicestershire Partnership NHS Trust,22/02/21,NURSE - BAND 2 - AGENCY,Ashby Ward (Bradgate Unit),HCL NURSING,HNSI0000615,766.54
Department of Health,Leicestershire Partnership NHS Trust,22/02/21,NURSE - BAND 5 - AGENCY,Ashby Ward (Bradgate Unit),HCL NURSING,HNSI0000615,901.69
Department of Health,Leicestershire Partnership NHS Trust,22/02/21,NURSE - BAND 2 - AGENCY,Aston Ward (Bradgate Unit),HCL NURSING,HNSI0000615,665.88
Department of Health,Leicestershire Partnership NHS Trust,22/02/21,NURSE - BAND 5 - AGENCY,Aston Ward (Bradgate Unit),HCL NURSING,HNSI0000615,329.82
Department of Health,Leicestershire Partnership NHS Trust,22/02/21,NURSE - BAND 2 - AGENCY,Beaumont Ward - Bradgate Unit,HCL NURSING,HNSI0000615,5819.06
Department of Health,Leicestershire Partnership NHS Trust,22/02/21,NURSE - BAND 5 - AGENCY,Beaumont Ward - Bradgate Unit,HCL NURSING,HNSI0000615,346.74
Department of Health,Leicestershire Partnership NHS Trust,22/02/21,NURSE - BAND 2 - AGENCY,Belvoir Psychiatric Intensive Care Unit,HCL NURSING,HNSI0000615,1331.76
Department of Health,Leicestershire Partnership NHS Trust,22/02/21,NURSE - BAND 5 - AGENCY,Belvoir Psychiatric Intensive Care Unit,HCL NURSING,HNSI0000615,1093.14
Department of Health,Leicestershire Partnership NHS Trust,22/02/21,Nurse - Band 6 -Agency,Crisis Resolution,HCL NURSING,HNSI0000615,4853.74
Department of Health,Leicestershire Partnership NHS Trust,22/02/21,NURSE - BAND 2 - AGENCY,Griffin Ward (HPC),HCL NURSING,HNSI0000615,1185.81
Department of Health,Leicestershire Partnership NHS Trust,22/02/21,NURSE - BAND 5 - AGENCY,Griffin Ward (HPC),HCL NURSING,HNSI0000615,1511.84
Department of Health,Leicestershire Partnership NHS Trust,22/02/21,NURSE - BAND 2 - AGENCY,Heather Ward,HCL NURSING,HNSI0000615,349.46
Department of Health,Leicestershire Partnership NHS Trust,22/02/21,NURSE - BAND 5 - AGENCY,Heather Ward,HCL NURSING,HNSI0000615,266.77
Department of Health,Leicestershire Partnership NHS Trust,22/02/21,Nurse - Band 6 -Agency,Mental Health Triage Team,HCL NURSING,HNSI0000615,718.90
Department of Health,Leicestershire Partnership NHS Trust,22/02/21,NURSE - BAND 2 - AGENCY,Mill Lodge,HCL NURSING,HNSI0000615,225.12
Department of Health,Leicestershire Partnership NHS Trust,22/02/21,NURSE - BAND 2 - AGENCY,Phoenix Ward (HPC),HCL NURSING,HNSI0000615,174.73
Department of Health,Leicestershire Partnership NHS Trust,22/02/21,NURSE - BAND 2 - AGENCY,Place Of Safety Assessment Unit,HCL NURSING,HNSI0000615,230.01
Department of Health,Leicestershire Partnership NHS Trust,22/02/21,NURSE - BAND 5 - AGENCY,Thornton Ward - Bradgate Unit,HCL NURSING,HNSI0000615,370.40
Department of Health,Leicestershire Partnership NHS Trust,22/02/21,NURSE - BAND 2 - AGENCY,Watermead Ward (Bradgate Unit),HCL NURSING,HNSI0000615,1202.51
Department of Health,Leicestershire Partnership NHS Trust,22/02/21,NURSE - BAND 5 - AGENCY,Watermead Ward (Bradgate Unit),HCL NURSING,HNSI0000615,989.51
Department of Health,Leicestershire Partnership NHS Trust,22/02/21,Crs_NHS_LT1y -Resus Inventory Supplied.,Balance Sheet Collection,SUPPLY CHAIN CO LTD,1121198383,29306.92
Department of Health,Leicestershire Partnership NHS Trust,22/02/21,Crs_NHS_LT1y -Resus Inventory Supplied.,Balance Sheet Collection,SUPPLY CHAIN CO LTD,1121193187,39590.48
Department of Health,Leicestershire Partnership NHS Trust,22/02/21,NURSE - BAND 5 - AGENCY,Beechwood Ward,HCL NURSING,HNSI0000609,945.56
Department of Health,Leicestershire Partnership NHS Trust,22/02/21,NURSE - BAND 5 - AGENCY,City Planned Care - East,HCL NURSING,HNSI0000609,14496.50
Department of Health,Leicestershire Partnership NHS Trust,22/02/21,NURSE - BAND 5 - AGENCY,City Planned Care - West,HCL NURSING,HNSI0000609,8705.05
Department of Health,Leicestershire Partnership NHS Trust,22/02/21,NURSE - BAND 2 - AGENCY,City Planned Care - West - Therapy,HCL NURSING,HNSI0000609,364.01
Department of Health,Leicestershire Partnership NHS Trust,22/02/21,Nurse - Band 6 -Agency,City West CMHT MHSOP,HCL NURSING,HNSI0000609,2116.22
Department of Health,Leicestershire Partnership NHS Trust,22/02/21,NURSE - BAND 2 - AGENCY,Clarendon Ward,HCL NURSING,HNSI0000609,9290.35
Department of Health,Leicestershire Partnership NHS Trust,22/02/21,NURSE - BAND 5 - AGENCY,Clarendon Ward,HCL NURSING,HNSI0000609,11400.33
Department of Health,Leicestershire Partnership NHS Trust,22/02/21,NURSE - BAND 2 - AGENCY,Coalville Snibston Ward,HCL NURSING,HNSI0000609,569.28
Department of Health,Leicestershire Partnership NHS Trust,22/02/21,NURSE - BAND 5 - AGENCY,Coalville Snibston Ward,HCL NURSING,HNSI0000609,559.01
Department of Health,Leicestershire Partnership NHS Trust,22/02/21,NURSE - BAND 5 - AGENCY,Coalville Ward 2,HCL NURSING,HNSI0000609,1198.48
Department of Health,Leicestershire Partnership NHS Trust,22/02/21,NURSE - BAND 2 - AGENCY,Coleman Ward,HCL NURSING,HNSI0000609,1759.58
Department of Health,Leicestershire Partnership NHS Trust,22/02/21,NURSE - BAND 5 - AGENCY,Coleman Ward,HCL NURSING,HNSI0000609,3415.64
Department of Health,Leicestershire Partnership NHS Trust,22/02/21,NURSE - BAND 2 - AGENCY,Gwendolen Ward,HCL NURSING,HNSI0000609,905.48
Department of Health,Leicestershire Partnership NHS Trust,22/02/21,NURSE - BAND 5 - AGENCY,Gwendolen Ward,HCL NURSING,HNSI0000609,3993.37
Department of Health,Leicestershire Partnership NHS Trust,22/02/21,NURSE - BAND 2 - AGENCY,H&B Comm Hosp East Ward,HCL NURSING,HNSI0000609,19060.69
Department of Health,Leicestershire Partnership NHS Trust,22/02/21,NURSE - BAND 5 - AGENCY,H&B Comm Hosp East Ward,HCL NURSING,HNSI0000609,4663.99
Department of Health,Leicestershire Partnership NHS Trust,22/02/21,NURSE - BAND 2 - AGENCY,H&B Comm Hosp North Ward,HCL NURSING,HNSI0000609,1735.87
Department of Health,Leicestershire Partnership NHS Trust,22/02/21,NURSE - BAND 5 - AGENCY,H&B Comm Hosp North Ward,HCL NURSING,HNSI0000609,2790.83
Department of Health,Leicestershire Partnership NHS Trust,22/02/21,NURSE - BAND 5 - AGENCY,Lough Charnwood Ward,HCL NURSING,HNSI0000609,11229.41
Department of Health,Leicestershire Partnership NHS Trust,22/02/21,NURSE - BAND 2 - AGENCY,Lough Swithland Ward,HCL NURSING,HNSI0000609,366.81
Department of Health,Leicestershire Partnership NHS Trust,22/02/21,NURSE - BAND 5 - AGENCY,Lough Swithland Ward,HCL NURSING,HNSI0000609,329.84
Department of Health,Leicestershire Partnership NHS Trust,22/02/21,Nurse - Band 6 -Agency,MHSOP Unscheduled Care Service,HCL NURSING,HNSI0000609,1110.32
Department of Health,Leicestershire Partnership NHS Trust,22/02/21,NURSE - BAND 2 - AGENCY,Rutland Ward Nursing,HCL NURSING,HNSI0000609,392.27
Department of Health,Leicestershire Partnership NHS Trust,22/02/21,Nurse - Band 6 -Agency,South Leicestershire CMHT MHSOP,HCL NURSING,HNSI0000609,1588.24
Department of Health,Leicestershire Partnership NHS Trust,22/02/21,NURSE - BAND 2 - AGENCY,St Lukes Stroke Ward,HCL NURSING,HNSI0000609,186.71
Department of Health,Leicestershire Partnership NHS Trust,22/02/21,NURSE - BAND 5 - AGENCY,St Lukes Stroke Ward,HCL NURSING,HNSI0000609,792.26
Department of Health,Leicestershire Partnership NHS Trust,22/02/21,NURSE - BAND 2 - AGENCY,St Lukes Ward 3,HCL NURSING,HNSI0000609,240.34
Department of Health,Leicestershire Partnership NHS Trust,22/02/21,NURSE - BAND 5 - AGENCY,St Lukes Ward 3,HCL NURSING,HNSI0000609,3479.80
Department of Health,Leicestershire Partnership NHS Trust,22/02/21,NURSE - BAND 2 - AGENCY,Wakerley Ward,HCL NURSING,HNSI0000609,3112.51
Department of Health,Leicestershire Partnership NHS Trust,22/02/21,NURSE - BAND 5 - AGENCY,Wakerley Ward,HCL NURSING,HNSI0000609,7237.24
Department of Health,Leicestershire Partnership NHS Trust,22/02/21,NURSE - BAND 3 - AGENCY,West Planned Care  - Hinckley Hub,HCL NURSING,HNSI0000609,732.36
Department of Health,Leicestershire Partnership NHS Trust,22/02/21,Computer License  Fees,Finance Department,VERSION 1,INVSOL008633,35825.70
Department of Health,Leicestershire Partnership NHS Trust,22/02/21,Water & Sewerage Charges,"Beaumont Leys Health Centre (P94, LPT)",WATER PLUS,0865005329/INV04558405,494.34
Department of Health,Leicestershire Partnership NHS Trust,22/02/21,Water & Sewerage Charges,Bridge Park Road (Unit C18) (LPT),WATER PLUS,0865005329/INV04558405,46.46
Department of Health,Leicestershire Partnership NHS Trust,22/02/21,Water & Sewerage Charges,"Bridge Park Road - Units 2 and 3 (P148, LPT)",WATER PLUS,0865005329/INV04558405,1704.98
Department of Health,Leicestershire Partnership NHS Trust,22/02/21,Water & Sewerage Charges,"Coalville Community Hospital (P138, LPT)",WATER PLUS,0865005329/INV04558405,606.79
Department of Health,Leicestershire Partnership NHS Trust,22/02/21,Water & Sewerage Charges,"Coalville Health Centre (P121, LPT)",WATER PLUS,0865005329/INV04558405,1431.62
Department of Health,Leicestershire Partnership NHS Trust,22/02/21,Water & Sewerage Charges,"Evington Centre (P6, LPT)",WATER PLUS,0865005329/INV04558405,3105.10
Department of Health,Leicestershire Partnership NHS Trust,22/02/21,Water & Sewerage Charges,"Feilding Palmer Hospital (Lutterworth) (P131, LPT)",WATER PLUS,0865005329/INV04558405,227.51
Department of Health,Leicestershire Partnership NHS Trust,22/02/21,Water & Sewerage Charges,HIS,WATER PLUS,0865005329/INV04558405,119.12
Department of Health,Leicestershire Partnership NHS Trust,22/02/21,Water & Sewerage Charges,Hinckley & District Hospital (PROPCO),WATER PLUS,0865005329/INV04558405,744.30
Department of Health,Leicestershire Partnership NHS Trust,22/02/21,Water & Sewerage Charges,"Hinckley and Bosworth Community Hospital (Sunnyside) (P133, LPT)",WATER PLUS,0865005329/INV04558405,5062.06
Department of Health,Leicestershire Partnership NHS Trust,22/02/21,Water & Sewerage Charges,"Hynca Lodge (P33, LPT)",WATER PLUS,0865005329/INV04558405,363.66
Department of Health,Leicestershire Partnership NHS Trust,22/02/21,Water & Sewerage Charges,"Loughborough Hospital (P136, LPT)",WATER PLUS,0865005329/INV04558405,7497.43
Department of Health,Leicestershire Partnership NHS Trust,22/02/21,Water & Sewerage Charges,"Narborough Health Centre (P117, LPT)",WATER PLUS,0865005329/INV04558405,1203.42
Department of Health,Leicestershire Partnership NHS Trust,22/02/21,Water & Sewerage Charges,"OSL House (P54, LPT)",WATER PLUS,0865005329/INV04558405,688.01
Department of Health,Leicestershire Partnership NHS Trust,22/02/21,Water & Sewerage Charges,"Orchard Resource Centre (P15, LPT)",WATER PLUS,0865005329/INV04558405,1510.23
Department of Health,Leicestershire Partnership NHS Trust,22/02/21,Water & Sewerage Charges,"Prince Philip House (P96, LPT)",WATER PLUS,0865005329/INV04558405,407.82
Department of Health,Leicestershire Partnership NHS Trust,22/02/21,Water & Sewerage Charges,Rothesay -  London Road 352A (LPT),WATER PLUS,0865005329/INV04558405,537.44
Department of Health,Leicestershire Partnership NHS Trust,22/02/21,Water & Sewerage Charges,"Rubicon Close 3 (P56, LPT)",WATER PLUS,0865005329/INV04558405,41.26
Department of Health,Leicestershire Partnership NHS Trust,22/02/21,Water & Sewerage Charges,"Rutland Memorial Hospital (P134, LPT)",WATER PLUS,0865005329/INV04558405,1831.57
Department of Health,Leicestershire Partnership NHS Trust,22/02/21,Water & Sewerage Charges,"Shepshed Health Centre (P123, LPT)",WATER PLUS,0865005329/INV04558405,548.44
Department of Health,Leicestershire Partnership NHS Trust,22/02/21,Water & Sewerage Charges,"Springfield Road Health Centre (P92, LPT)",WATER PLUS,0865005329/INV04558405,616.39
Department of Health,Leicestershire Partnership NHS Trust,22/02/21,Water & Sewerage Charges,"Stewart House (P61, LPT)",WATER PLUS,0865005329/INV04558405,1377.49
Department of Health,Leicestershire Partnership NHS Trust,22/02/21,Water & Sewerage Charges,"Swithland House - London Road 352 (P44, LPT)",WATER PLUS,0865005329/INV04558405,211.34
Department of Health,Leicestershire Partnership NHS Trust,22/02/21,Water & Sewerage Charges,"The Agnes Unit (AKA Assessment and Treatment Centre) (P85, LPT)",WATER PLUS,0865005329/INV04558405,1462.24
Department of Health,Leicestershire Partnership NHS Trust,22/02/21,Water & Sewerage Charges,"The Cedars (P19, LPT)",WATER PLUS,0865005329/INV04558405,456.08
Department of Health,Leicestershire Partnership NHS Trust,22/02/21,Water & Sewerage Charges,"The Grange 1 (P4, LPT)",WATER PLUS,0865005329/INV04558405,176.34
Department of Health,Leicestershire Partnership NHS Trust,22/02/21,Water & Sewerage Charges,"The Grange 2 (P41, LPT)",WATER PLUS,0865005329/INV04558405,171.14
Department of Health,Leicestershire Partnership NHS Trust,22/02/21,Water & Sewerage Charges,"The Willows - Cordelia Close (P22, LPT)",WATER PLUS,0865005329/INV04558405,4969.98
Department of Health,Leicestershire Partnership NHS Trust,22/02/21,Water & Sewerage Charges,"Westcotes Group - Tanglewood Resource Centre (P77, LPT)",WATER PLUS,0865005329/INV04558405,263.72
Department of Health,Leicestershire Partnership NHS Trust,22/02/21,Water & Sewerage Charges,"Westcotes Group -Westcotes House (P78, LPT)",WATER PLUS,0865005329/INV04558405,193.12
Department of Health,Leicestershire Partnership NHS Trust,24/02/21,NURSE - BAND 2 - AGENCY,Beechwood Ward,HCL NURSING,HNSI0000616,269.49
Department of Health,Leicestershire Partnership NHS Trust,24/02/21,NURSE - BAND 5 - AGENCY,City Planned Care - East,HCL NURSING,HNSI0000616,17599.55
Department of Health,Leicestershire Partnership NHS Trust,24/02/21,NURSE - BAND 5 - AGENCY,City Planned Care - West,HCL NURSING,HNSI0000616,8366.88
Department of Health,Leicestershire Partnership NHS Trust,24/02/21,Nurse - Band 6 -Agency,City West CMHT MHSOP,HCL NURSING,HNSI0000616,2116.22
Department of Health,Leicestershire Partnership NHS Trust,24/02/21,NURSE - BAND 2 - AGENCY,Clarendon Ward,HCL NURSING,HNSI0000616,9755.61
Department of Health,Leicestershire Partnership NHS Trust,24/02/21,NURSE - BAND 5 - AGENCY,Clarendon Ward,HCL NURSING,HNSI0000616,7624.77
Department of Health,Leicestershire Partnership NHS Trust,24/02/21,NURSE - BAND 2 - AGENCY,Coalville Snibston Ward,HCL NURSING,HNSI0000616,1630.45
Department of Health,Leicestershire Partnership NHS Trust,24/02/21,NURSE - BAND 2 - AGENCY,Coalville Ward 2,HCL NURSING,HNSI0000616,1165.54
Department of Health,Leicestershire Partnership NHS Trust,24/02/21,NURSE - BAND 2 - AGENCY,Coleman Ward,HCL NURSING,HNSI0000616,1398.95
Department of Health,Leicestershire Partnership NHS Trust,24/02/21,NURSE - BAND 5 - AGENCY,Coleman Ward,HCL NURSING,HNSI0000616,4868.94
Department of Health,Leicestershire Partnership NHS Trust,24/02/21,NURSE - BAND 2 - AGENCY,Dalgliesh Ward,HCL NURSING,HNSI0000616,495.28
Department of Health,Leicestershire Partnership NHS Trust,24/02/21,NURSE - BAND 5 - AGENCY,Dalgliesh Ward,HCL NURSING,HNSI0000616,557.00
Department of Health,Leicestershire Partnership NHS Trust,24/02/21,NURSE - BAND 2 - AGENCY,Gwendolen Ward,HCL NURSING,HNSI0000616,1807.18
Department of Health,Leicestershire Partnership NHS Trust,24/02/21,NURSE - BAND 5 - AGENCY,Gwendolen Ward,HCL NURSING,HNSI0000616,2872.29
Department of Health,Leicestershire Partnership NHS Trust,24/02/21,NURSE - BAND 2 - AGENCY,H&B Comm Hosp East Ward,HCL NURSING,HNSI0000616,19006.66
Department of Health,Leicestershire Partnership NHS Trust,24/02/21,NURSE - BAND 5 - AGENCY,H&B Comm Hosp East Ward,HCL NURSING,HNSI0000616,9441.14
Department of Health,Leicestershire Partnership NHS Trust,24/02/21,NURSE - BAND 2 - AGENCY,H&B Comm Hosp North Ward,HCL NURSING,HNSI0000616,1096.61
Department of Health,Leicestershire Partnership NHS Trust,24/02/21,NURSE - BAND 5 - AGENCY,H&B Comm Hosp North Ward,HCL NURSING,HNSI0000616,2831.28
Department of Health,Leicestershire Partnership NHS Trust,24/02/21,NURSE - BAND 2 - AGENCY,Kirby Ward,HCL NURSING,HNSI0000616,117.42
Department of Health,Leicestershire Partnership NHS Trust,24/02/21,NURSE - BAND 5 - AGENCY,Kirby Ward,HCL NURSING,HNSI0000616,1527.88
Department of Health,Leicestershire Partnership NHS Trust,24/02/21,NURSE - BAND 2 - AGENCY,Lough Charnwood Ward,HCL NURSING,HNSI0000616,1044.09
Department of Health,Leicestershire Partnership NHS Trust,24/02/21,NURSE - BAND 5 - AGENCY,Lough Charnwood Ward,HCL NURSING,HNSI0000616,2641.75
Department of Health,Leicestershire Partnership NHS Trust,24/02/21,NURSE - BAND 2 - AGENCY,Lough Swithland Ward,HCL NURSING,HNSI0000616,1106.65
Department of Health,Leicestershire Partnership NHS Trust,24/02/21,NURSE - BAND 5 - AGENCY,Lough Swithland Ward,HCL NURSING,HNSI0000616,1380.04
Department of Health,Leicestershire Partnership NHS Trust,24/02/21,Nurse - Band 6 -Agency,MHSOP Unscheduled Care Service,HCL NURSING,HNSI0000616,1387.89
Department of Health,Leicestershire Partnership NHS Trust,24/02/21,Nurse - Band 6 -Agency,South Leicestershire CMHT MHSOP,HCL NURSING,HNSI0000616,1305.81
Department of Health,Leicestershire Partnership NHS Trust,24/02/21,NURSE - BAND 2 - AGENCY,St Lukes Stroke Ward,HCL NURSING,HNSI0000616,1462.40
Department of Health,Leicestershire Partnership NHS Trust,24/02/21,NURSE - BAND 5 - AGENCY,St Lukes Stroke Ward,HCL NURSING,HNSI0000616,3639.78
Department of Health,Leicestershire Partnership NHS Trust,24/02/21,NURSE - BAND 2 - AGENCY,St Lukes Ward 3,HCL NURSING,HNSI0000616,1226.02
Department of Health,Leicestershire Partnership NHS Trust,24/02/21,NURSE - BAND 5 - AGENCY,St Lukes Ward 3,HCL NURSING,HNSI0000616,3222.66
Department of Health,Leicestershire Partnership NHS Trust,24/02/21,NURSE - BAND 2 - AGENCY,Wakerley Ward,HCL NURSING,HNSI0000616,1346.31
Department of Health,Leicestershire Partnership NHS Trust,24/02/21,NURSE - BAND 5 - AGENCY,Wakerley Ward,HCL NURSING,HNSI0000616,5430.74
Department of Health,Leicestershire Partnership NHS Trust,24/02/21,NURSE - BAND 2 - AGENCY,Welford Ward,HCL NURSING,HNSI0000616,88.62
Department of Health,Leicestershire Partnership NHS Trust,24/02/21,NURSE - BAND 5 - AGENCY,Welford Ward,HCL NURSING,HNSI0000616,302.60
Department of Health,Leicestershire Partnership NHS Trust,24/02/21,GP IT Expenditure,Area Team,CCS MEDIA,4125790,31651.20
Department of Health,Leicestershire Partnership NHS Trust,24/02/21,GP IT Expenditure,Area Team,DELL COMPUTERS,7402687013,27900.00
Department of Health,Leicestershire Partnership NHS Trust,24/02/21,GP IT Expenditure,Area Team,DELL COMPUTERS,7402687149,27900.00
Department of Health,Leicestershire Partnership NHS Trust,24/02/21,GP IT Expenditure,Area Team,DELL COMPUTERS,7402687150,27900.00
Department of Health,Leicestershire Partnership NHS Trust,24/02/21,GP IT Expenditure,Area Team,DELL COMPUTERS,7402687155,27900.00
Department of Health,Leicestershire Partnership NHS Trust,24/02/21,GP IT Expenditure,Area Team,DELL COMPUTERS,7402687153,27900.00
Department of Health,Leicestershire Partnership NHS Trust,24/02/21,GP IT Expenditure,Area Team,DELL COMPUTERS,7402687152,27900.00
Department of Health,Leicestershire Partnership NHS Trust,24/02/21,GP IT Expenditure,Area Team,DELL COMPUTERS,7402686925,27900.00
Department of Health,Leicestershire Partnership NHS Trust,24/02/21,GP IT Expenditure,Area Team,DELL COMPUTERS,7402686924,27900.00
Department of Health,Leicestershire Partnership NHS Trust,24/02/21,GP IT Expenditure,Area Team,DELL COMPUTERS,7402686867,27900.00
Department of Health,Leicestershire Partnership NHS Trust,24/02/21,GP IT Expenditure,Area Team,DELL COMPUTERS,7402686921,27900.00
Department of Health,Leicestershire Partnership NHS Trust,24/02/21,GP IT Expenditure,Area Team,DELL COMPUTERS,7402686647,27900.00
Department of Health,Leicestershire Partnership NHS Trust,24/02/21,Computer Hardware,HIS Programme & Change,DELL COMPUTERS,7402683940,42720.00
Department of Health,Leicestershire Partnership NHS Trust,25/02/21,Nurse - Band 6 -Agency,CAMHS Inpatient Service,PROMETHEUS S & S LTD,18856,33556.00
